[Event "Titled Tuesday Blitz May 4 2021"]
[White "Gedgafov, Chamal"]
[Black "Korchagina, Alena"]
[WhiteFideId "34130621"]
[BlackFideId "24173452"]
[WhiteElo "2005"]
[BlackElo "1919"]
[Result "1-0"]
[Round "04"]
[TimeControl "180+1"]
[Date "2021.05.04"]
[WhiteClock "0:00:17"]
[BlackClock "0:00:08"]

1. d4 {[%clk 0:03:00]}  d5 {[%clk 0:02:59]} 2. c4 {[%clk 0:03:00]}  dxc4 {[%clk 0:02:56]} 3. Nf3 {[%clk 0:02:59]}  a6 {[%clk 0:02:55]} 4. a4 {[%clk 0:02:58]}  Nf6 {[%clk 0:02:43]} 5. Nc3 {[%clk 0:02:57]}  c5 {[%clk 0:02:35]} 6. d5 {[%clk 0:02:56]}  e6 {[%clk 0:02:28]} 7. e4 {[%clk 0:02:55]}  exd5 {[%clk 0:02:09]} 8. exd5 {[%clk 0:02:56]}  Bd6 {[%clk 0:01:59]} 9. Bxc4 {[%clk 0:02:55]}  O-O {[%clk 0:01:58]} 10. O-O {[%clk 0:02:53]}  Bg4 {[%clk 0:01:54]} 11. h3 {[%clk 0:02:47]}  Bh5 {[%clk 0:01:53]} 12. Bg5 {[%clk 0:02:47]}  Nbd7 {[%clk 0:01:51]} 13. Ne4 {[%clk 0:02:34]}  Be5 {[%clk 0:01:33]} 14. g4 {[%clk 0:02:11]}  Bg6 {[%clk 0:01:32]} 15. Nxf6+ {[%clk 0:02:01]}  Bxf6 {[%clk 0:01:30]} 16. Bf4 {[%clk 0:01:56]}  Re8 {[%clk 0:01:27]} 17. Qd2 {[%clk 0:01:48]}  Ne5 {[%clk 0:01:10]} 18. Nxe5 {[%clk 0:01:45]}  Bxe5 {[%clk 0:01:11]} 19. Rfe1 {[%clk 0:01:41]}  Qf6 {[%clk 0:01:06]} 20. Bxe5 {[%clk 0:01:36]}  Rxe5 {[%clk 0:01:07]} 21. Rxe5 {[%clk 0:01:32]}  Qxe5 {[%clk 0:01:07]} 22. Re1 {[%clk 0:01:32]}  Qd6 {[%clk 0:01:00]} 23. Qe3 {[%clk 0:01:17]}  h5 {[%clk 0:00:55]} 24. a5 {[%clk 0:01:16]}  hxg4 {[%clk 0:00:52]} 25. hxg4 {[%clk 0:01:17]}  Qd7 {[%clk 0:00:52]} 26. f3 {[%clk 0:01:15]}  Qa4 {[%clk 0:00:44]} 27. b3 {[%clk 0:01:13]}  Qxa5 {[%clk 0:00:43]} 28. Rd1 {[%clk 0:01:14]}  Qd8 {[%clk 0:00:37]} 29. d6 {[%clk 0:01:12]}  Qh4 {[%clk 0:00:32]} 30. Kg2 {[%clk 0:01:10]}  Qf6 {[%clk 0:00:29]} 31. Qxc5 {[%clk 0:01:04]}  Qb2+ {[%clk 0:00:26]} 32. Kg3 {[%clk 0:00:54]}  Re8 {[%clk 0:00:20]} 33. d7 {[%clk 0:00:51]}  Rd8 {[%clk 0:00:20]} 34. Qe7 {[%clk 0:00:47]}  Qf6 {[%clk 0:00:19]} 35. Qc5 {[%clk 0:00:39]}  b6 {[%clk 0:00:17]} 36. Qc7 {[%clk 0:00:34]}  Qe7 {[%clk 0:00:15]} 37. Rd4 {[%clk 0:00:28]}  b5 {[%clk 0:00:14]} 38. Bf1 {[%clk 0:00:24]}  f5 {[%clk 0:00:12]} 39. Qd6 {[%clk 0:00:20]}  Qxd6+ {[%clk 0:00:11]} 40. Rxd6 {[%clk 0:00:20]}  Kf7 {[%clk 0:00:11]} 41. Rxa6 {[%clk 0:00:19]}  Rxd7 {[%clk 0:00:11]} 42. Bxb5 {[%clk 0:00:18]}  Rb7 {[%clk 0:00:10]} 43. Bc4+ {[%clk 0:00:18]}  Ke7 {[%clk 0:00:08]} 44. Rxg6 {[%clk 0:00:18]}  fxg4 {[%clk 0:00:08]} 45. Rxg7+ {[%clk 0:00:17]} 1-0


[Site "https://www.chess.com"]

[Event "Titled Tuesday Blitz May 4 2021"]
[White "Gerola, Fausto"]
[Black "Manukyan, Sargis A."]
[WhiteFideId "845175"]
[BlackFideId "13303970"]
[WhiteElo "2166"]
[BlackElo "2187"]
[Result "0-1"]
[Round "04"]
[TimeControl "180+1"]
[Date "2021.05.04"]
[WhiteClock "0:00:08"]
[BlackClock "0:00:33"]

1. e4 {[%clk 0:03:00]}  c5 {[%clk 0:02:59]} 2. Nf3 {[%clk 0:03:00]}  d6 {[%clk 0:02:59]} 3. d4 {[%clk 0:03:00]}  cxd4 {[%clk 0:03:00]} 4. Nxd4 {[%clk 0:03:01]}  Nf6 {[%clk 0:03:01]} 5. Nc3 {[%clk 0:03:01]}  g6 {[%clk 0:03:01]} 6. Bg5 {[%clk 0:03:00]}  Bg7 {[%clk 0:03:02]} 7. Qd2 {[%clk 0:03:01]}  O-O {[%clk 0:03:02]} 8. O-O-O {[%clk 0:03:01]}  Nc6 {[%clk 0:03:03]} 9. Nxc6 {[%clk 0:02:57]}  bxc6 {[%clk 0:03:03]} 10. Bh6 {[%clk 0:02:57]}  Rb8 {[%clk 0:03:03]} 11. Bxg7 {[%clk 0:02:56]}  Kxg7 {[%clk 0:03:04]} 12. Bc4 {[%clk 0:02:56]}  Qa5 {[%clk 0:03:03]} 13. Bb3 {[%clk 0:02:54]}  Be6 {[%clk 0:03:02]} 14. Kb1 {[%clk 0:02:54]}  Qb6 {[%clk 0:02:58]} 15. f4 {[%clk 0:02:52]}  a5 {[%clk 0:02:58]} 16. Na4 {[%clk 0:02:26]}  Qb4 {[%clk 0:02:56]} 17. Qxb4 {[%clk 0:02:16]}  Rxb4 {[%clk 0:02:53]} 18. e5 {[%clk 0:02:16]}  Nh5 {[%clk 0:02:49]} 19. exd6 {[%clk 0:02:15]}  exd6 {[%clk 0:02:48]} 20. g3 {[%clk 0:02:15]}  Bxb3 {[%clk 0:02:47]} 21. axb3 {[%clk 0:02:14]}  d5 {[%clk 0:02:48]} 22. Rhe1 {[%clk 0:02:12]}  Nf6 {[%clk 0:02:46]} 23. Nc5 {[%clk 0:01:58]}  h5 {[%clk 0:02:40]} 24. Nd3 {[%clk 0:01:53]}  Rbb8 {[%clk 0:02:38]} 25. Ne5 {[%clk 0:01:53]}  Rfc8 {[%clk 0:02:36]} 26. Rd4 {[%clk 0:01:41]}  Ne4 {[%clk 0:02:33]} 27. Ra4 {[%clk 0:01:38]}  Rb5 {[%clk 0:02:30]} 28. Ka2 {[%clk 0:01:28]}  Nc5 {[%clk 0:02:25]} 29. Ra3 {[%clk 0:01:20]}  f6 {[%clk 0:02:23]} 30. Nf3 {[%clk 0:01:14]}  Kf7 {[%clk 0:02:17]} 31. Nd4 {[%clk 0:01:15]}  Rb4 {[%clk 0:02:17]} 32. c3 {[%clk 0:01:14]}  Nd3 {[%clk 0:02:12]} 33. cxb4 {[%clk 0:01:07]}  Nxe1 {[%clk 0:02:06]} 34. bxa5 {[%clk 0:01:07]}  c5 {[%clk 0:02:06]} 35. Nb5 {[%clk 0:01:07]}  d4 {[%clk 0:02:06]} 36. Nd6+ {[%clk 0:01:07]}  Ke6 {[%clk 0:02:06]} 37. Nxc8 {[%clk 0:01:07]}  d3 {[%clk 0:02:07]} 38. a6 {[%clk 0:00:58]}  d2 {[%clk 0:02:07]} 39. a7 {[%clk 0:00:59]}  d1=Q {[%clk 0:02:05]} 40. a8=Q {[%clk 0:00:59]}  Nc2 {[%clk 0:02:01]} 41. Ra6+ {[%clk 0:00:58]}  Kf5 {[%clk 0:01:59]} 42. Ne7+ {[%clk 0:00:57]}  Kg4 {[%clk 0:01:59]} 43. Qc8+ {[%clk 0:00:42]}  f5 {[%clk 0:01:58]} 44. b4 {[%clk 0:00:37]}  Nxb4+ {[%clk 0:01:49]} 45. Ka3 {[%clk 0:00:37]}  Qd3+ {[%clk 0:01:44]} 46. Ka4 {[%clk 0:00:31]}  Nxa6 {[%clk 0:01:43]} 47. Ka5 {[%clk 0:00:29]}  Nb4 {[%clk 0:01:40]} 48. Qxc5 {[%clk 0:00:28]}  Nc2 {[%clk 0:01:30]} 49. b4 {[%clk 0:00:25]}  Nd4 {[%clk 0:01:22]} 50. Kb6 {[%clk 0:00:22]}  Ne6 {[%clk 0:01:18]} 51. Qc6 {[%clk 0:00:14]}  Qd4+ {[%clk 0:01:14]} 52. Ka6 {[%clk 0:00:10]}  Qf6 {[%clk 0:00:56]} 53. Nd5 {[%clk 0:00:10]}  Qa1+ {[%clk 0:00:47]} 54. Kb7 {[%clk 0:00:10]}  Nd8+ {[%clk 0:00:47]} 55. Kc7 {[%clk 0:00:10]}  Nxc6 {[%clk 0:00:48]} 56. Kxc6 {[%clk 0:00:11]}  Qc1+ {[%clk 0:00:48]} 57. Kd6 {[%clk 0:00:11]}  h4 {[%clk 0:00:47]} 58. b5 {[%clk 0:00:11]}  hxg3 {[%clk 0:00:46]} 59. hxg3 {[%clk 0:00:12]}  Qa3+ {[%clk 0:00:45]} 60. Kc6 {[%clk 0:00:12]}  Kxg3 {[%clk 0:00:43]} 61. b6 {[%clk 0:00:12]}  Qc1+ {[%clk 0:00:43]} 62. Kd7 {[%clk 0:00:12]}  Qd2 {[%clk 0:00:41]} 63. Kc6 {[%clk 0:00:12]}  Qc2+ {[%clk 0:00:37]} 64. Kd6 {[%clk 0:00:12]}  Qb3 {[%clk 0:00:36]} 65. Kc6 {[%clk 0:00:12]}  Qc4+ {[%clk 0:00:37]} 66. Kd6 {[%clk 0:00:12]}  Qb5 {[%clk 0:00:37]} 67. Ke6 {[%clk 0:00:08]}  g5 {[%clk 0:00:36]} 68. fxg5 {[%clk 0:00:07]}  f4 {[%clk 0:00:36]} 69. g6 {[%clk 0:00:07]}  Qc6+ {[%clk 0:00:33]} 70. Ke5 {[%clk 0:00:08]}  Qxg6 {[%clk 0:00:33]} 0-1


[Site "https://www.chess.com"]

[Event "Titled Tuesday Blitz May 4 2021"]
[White "Golubev, Mikhail"]
[Black "Leitao, Rafael"]
[WhiteFideId "14100983"]
[BlackFideId "2101246"]
[WhiteElo "2374"]
[BlackElo "2609"]
[Result "1/2-1/2"]
[Round "04"]
[TimeControl "180+1"]
[Date "2021.05.04"]
[WhiteClock "0:00:47"]
[BlackClock "0:00:26"]

1. e4 {[%clk 0:03:00]}  e5 {[%clk 0:02:59]} 2. Nf3 {[%clk 0:03:00]}  Nc6 {[%clk 0:02:59]} 3. Nc3 {[%clk 0:03:00]}  Nf6 {[%clk 0:02:57]} 4. d4 {[%clk 0:03:00]}  exd4 {[%clk 0:02:57]} 5. Nxd4 {[%clk 0:03:01]}  Bb4 {[%clk 0:02:58]} 6. Nxc6 {[%clk 0:03:01]}  bxc6 {[%clk 0:02:58]} 7. Bd3 {[%clk 0:03:01]}  d5 {[%clk 0:02:54]} 8. Bd2 {[%clk 0:02:58]}  O-O {[%clk 0:02:51]} 9. O-O {[%clk 0:02:57]}  Bxc3 {[%clk 0:02:39]} 10. Bxc3 {[%clk 0:02:56]}  Nxe4 {[%clk 0:02:39]} 11. Bxe4 {[%clk 0:02:53]}  dxe4 {[%clk 0:02:39]} 12. Qe2 {[%clk 0:02:52]}  Qh4 {[%clk 0:02:29]} 13. Rad1 {[%clk 0:02:42]}  Re8 {[%clk 0:02:25]} 14. Rd4 {[%clk 0:02:26]}  Bf5 {[%clk 0:02:14]} 15. Qe3 {[%clk 0:02:12]}  Re6 {[%clk 0:01:59]} 16. f3 {[%clk 0:01:57]}  Rae8 {[%clk 0:01:47]} 17. fxe4 {[%clk 0:01:52]}  Rxe4 {[%clk 0:01:31]} 18. Rxe4 {[%clk 0:01:51]}  Bxe4 {[%clk 0:01:27]} 19. Qxa7 {[%clk 0:01:00]}  Bxg2 {[%clk 0:00:42]} 20. Kxg2 {[%clk 0:00:50]}  Qg4+ {[%clk 0:00:37]} 21. Kh1 {[%clk 0:00:49]}  Qe4+ {[%clk 0:00:33]} 22. Kg1 {[%clk 0:00:47]}  Qg4+ {[%clk 0:00:29]} 23. Kh1 {[%clk 0:00:48]}  Qe4+ {[%clk 0:00:26]} 24. Kg1 {[%clk 0:00:47]}  Qg4+ {[%clk 0:00:26]} 25. Kh1 {[%clk 0:00:47]} 1/2-1/2


[Site "https://www.chess.com"]

[Event "Titled Tuesday Blitz May 4 2021"]
[White "Gurevich, Dmitry"]
[Black "Acor, Corey"]
[WhiteFideId "2000407"]
[BlackFideId "2024861"]
[WhiteElo "2506"]
[BlackElo "2748"]
[Result "0-1"]
[Round "04"]
[TimeControl "180+1"]
[Date "2021.05.04"]
[WhiteClock "0:00:03"]
[BlackClock "0:00:20"]

1. d4 {[%clk 0:03:00]}  Nf6 {[%clk 0:02:56]} 2. c4 {[%clk 0:03:00]}  e5 {[%clk 0:02:56]} 3. dxe5 {[%clk 0:02:59]}  Ng4 {[%clk 0:02:56]} 4. Bf4 {[%clk 0:02:59]}  Nc6 {[%clk 0:02:56]} 5. Nf3 {[%clk 0:02:58]}  Bb4+ {[%clk 0:02:55]} 6. Nc3 {[%clk 0:02:57]}  Qe7 {[%clk 0:02:52]} 7. Qd5 {[%clk 0:02:56]}  Bxc3+ {[%clk 0:02:51]} 8. bxc3 {[%clk 0:02:56]}  Qa3 {[%clk 0:02:52]} 9. Qd2 {[%clk 0:02:54]}  Qe7 {[%clk 0:02:49]} 10. Qd5 {[%clk 0:02:54]}  f6 {[%clk 0:02:43]} 11. exf6 {[%clk 0:02:53]}  Nxf6 {[%clk 0:02:44]} 12. Qd3 {[%clk 0:02:49]}  d6 {[%clk 0:02:44]} 13. g3 {[%clk 0:02:48]}  Bg4 {[%clk 0:02:42]} 14. Bg2 {[%clk 0:02:47]}  O-O {[%clk 0:02:43]} 15. O-O {[%clk 0:02:46]}  Rae8 {[%clk 0:02:43]} 16. Rfe1 {[%clk 0:02:36]}  Ne4 {[%clk 0:02:40]} 17. Nd4 {[%clk 0:02:21]}  Bd7 {[%clk 0:02:18]} 18. Bxe4 {[%clk 0:01:50]}  Qxe4 {[%clk 0:02:19]} 19. Qxe4 {[%clk 0:01:50]}  Rxe4 {[%clk 0:02:20]} 20. Nxc6 {[%clk 0:01:40]}  Bxc6 {[%clk 0:02:18]} 21. c5 {[%clk 0:01:40]}  dxc5 {[%clk 0:02:11]} 22. Bxc7 {[%clk 0:01:39]}  Rfe8 {[%clk 0:02:06]} 23. e3 {[%clk 0:01:24]}  Rc4 {[%clk 0:02:06]} 24. Rac1 {[%clk 0:01:16]}  Bf3 {[%clk 0:01:53]} 25. h4 {[%clk 0:00:53]}  Re7 {[%clk 0:01:48]} 26. Bd6 {[%clk 0:00:49]}  Re6 {[%clk 0:01:48]} 27. Bf4 {[%clk 0:00:49]}  Ra6 {[%clk 0:01:42]} 28. Rc2 {[%clk 0:00:48]}  Be4 {[%clk 0:01:42]} 29. Rd2 {[%clk 0:00:47]}  Rxc3 {[%clk 0:01:15]} 30. Rd7 {[%clk 0:00:37]}  Rd3 {[%clk 0:01:11]} 31. Rc7 {[%clk 0:00:27]}  Bc6 {[%clk 0:01:06]} 32. Be5 {[%clk 0:00:19]}  Rd7 {[%clk 0:01:06]} 33. Rxd7 {[%clk 0:00:18]}  Bxd7 {[%clk 0:01:06]} 34. Rd1 {[%clk 0:00:18]}  Bc6 {[%clk 0:01:00]} 35. Rd2 {[%clk 0:00:15]}  Kf7 {[%clk 0:00:58]} 36. g4 {[%clk 0:00:14]}  Ra4 {[%clk 0:00:55]} 37. f4 {[%clk 0:00:13]}  g6 {[%clk 0:00:54]} 38. Kf2 {[%clk 0:00:12]}  c4 {[%clk 0:00:48]} 39. Kg3 {[%clk 0:00:11]}  Ra3 {[%clk 0:00:41]} 40. Kf2 {[%clk 0:00:07]}  Be4 {[%clk 0:00:40]} 41. Rd4 {[%clk 0:00:04]}  Rxa2+ {[%clk 0:00:37]} 42. Kg3 {[%clk 0:00:04]}  Bc6 {[%clk 0:00:32]} 43. Rxc4 {[%clk 0:00:03]}  Ke6 {[%clk 0:00:27]} 44. Bd4 {[%clk 0:00:02]}  a5 {[%clk 0:00:26]} 45. Rc5 {[%clk 0:00:02]}  a4 {[%clk 0:00:24]} 46. f5+ {[%clk 0:00:02]}  gxf5 {[%clk 0:00:24]} 47. gxf5+ {[%clk 0:00:03]}  Kf7 {[%clk 0:00:20]} 0-1


[Site "https://www.chess.com"]

[Event "Titled Tuesday Blitz May 4 2021"]
[White "Havanecz, Bianka"]
[Black "Gandhi, Shyam"]
[WhiteFideId "704814"]
[BlackFideId "2052008"]
[WhiteElo "2332"]
[BlackElo "1951"]
[Result "1/2-1/2"]
[Round "04"]
[TimeControl "180+1"]
[Date "2021.05.04"]
[WhiteClock "0:00:02"]
[BlackClock "0:00:31"]

1. d4 {[%clk 0:03:00]}  g6 {[%clk 0:03:00]} 2. c4 {[%clk 0:03:00]}  Bg7 {[%clk 0:03:00]} 3. Nc3 {[%clk 0:02:59]}  d6 {[%clk 0:03:00]} 4. e4 {[%clk 0:02:59]}  e5 {[%clk 0:02:59]} 5. d5 {[%clk 0:02:58]}  f5 {[%clk 0:02:58]} 6. exf5 {[%clk 0:02:55]}  gxf5 {[%clk 0:02:58]} 7. f4 {[%clk 0:02:55]}  Nf6 {[%clk 0:02:55]} 8. fxe5 {[%clk 0:02:45]}  dxe5 {[%clk 0:02:55]} 9. Nf3 {[%clk 0:02:32]}  e4 {[%clk 0:02:54]} 10. Ng5 {[%clk 0:02:16]}  O-O {[%clk 0:02:53]} 11. Be2 {[%clk 0:02:12]}  h6 {[%clk 0:02:50]} 12. Nh3 {[%clk 0:02:11]}  c6 {[%clk 0:02:39]} 13. O-O {[%clk 0:02:01]}  cxd5 {[%clk 0:02:38]} 14. cxd5 {[%clk 0:02:01]}  Qb6+ {[%clk 0:02:36]} 15. Kh1 {[%clk 0:01:59]}  Na6 {[%clk 0:02:23]} 16. Nf4 {[%clk 0:01:53]}  e3 {[%clk 0:02:07]} 17. Na4 {[%clk 0:01:33]}  Qb4 {[%clk 0:01:55]} 18. Bxe3 {[%clk 0:01:21]}  Ne4 {[%clk 0:01:52]} 19. a3 {[%clk 0:01:05]}  Qe7 {[%clk 0:01:41]} 20. Ng6 {[%clk 0:00:55]}  Ng3+ {[%clk 0:01:24]} 21. hxg3 {[%clk 0:00:55]}  Qxe3 {[%clk 0:01:24]} 22. Nxf8 {[%clk 0:00:55]}  Bxf8 {[%clk 0:01:24]} 23. Rf3 {[%clk 0:00:48]}  Qg5 {[%clk 0:01:23]} 24. Rc1 {[%clk 0:00:17]}  Bd7 {[%clk 0:01:13]} 25. Bxa6 {[%clk 0:00:12]}  Bxa4 {[%clk 0:01:11]} 26. Qe1 {[%clk 0:00:04]}  Re8 {[%clk 0:01:10]} 27. Qf1 {[%clk 0:00:03]}  bxa6 {[%clk 0:01:10]} 28. Rxf5 {[%clk 0:00:03]}  Qxg3 {[%clk 0:01:07]} 29. Rc4 {[%clk 0:00:03]}  Re1 {[%clk 0:01:04]} 30. Rxf8+ {[%clk 0:00:02]}  Kg7 {[%clk 0:01:04]} 31. Rf7+ {[%clk 0:00:02]}  Kg6 {[%clk 0:01:03]} 32. Rf6+ {[%clk 0:00:02]}  Kg7 {[%clk 0:00:51]} 33. Rf7+ {[%clk 0:00:03]}  Kg6 {[%clk 0:00:48]} 34. Rf6+ {[%clk 0:00:03]}  Kg7 {[%clk 0:00:31]} 35. Rf7+ {[%clk 0:00:02]} 1/2-1/2


[Site "https://www.chess.com"]

[Event "Titled Tuesday Blitz May 4 2021"]
[White "Ivanov, Mike"]
[Black "Perez Gormaz, Matias"]
[WhiteFideId "2613158"]
[BlackFideId "3406342"]
[WhiteElo "2197"]
[BlackElo "2414"]
[Result "0-1"]
[Round "04"]
[TimeControl "180+1"]
[Date "2021.05.04"]
[WhiteClock "0:00:01"]
[BlackClock "0:00:05"]

1. e4 {[%clk 0:03:00]}  c5 {[%clk 0:03:00]} 2. Nf3 {[%clk 0:03:00]}  d6 {[%clk 0:03:00]} 3. d4 {[%clk 0:03:00]}  cxd4 {[%clk 0:03:01]} 4. Qxd4 {[%clk 0:03:00]}  Nc6 {[%clk 0:03:01]} 5. Qe3 {[%clk 0:03:00]}  g6 {[%clk 0:02:58]} 6. Be2 {[%clk 0:03:00]}  Bg7 {[%clk 0:02:58]} 7. O-O {[%clk 0:03:00]}  Bg4 {[%clk 0:02:56]} 8. h3 {[%clk 0:02:57]}  Bxf3 {[%clk 0:02:56]} 9. Bxf3 {[%clk 0:02:58]}  Nf6 {[%clk 0:02:57]} 10. Rd1 {[%clk 0:02:57]}  O-O {[%clk 0:02:57]} 11. c4 {[%clk 0:02:55]}  Nd7 {[%clk 0:02:54]} 12. Nc3 {[%clk 0:02:52]}  Nc5 {[%clk 0:02:35]} 13. Bd2 {[%clk 0:02:28]}  a5 {[%clk 0:02:27]} 14. Rac1 {[%clk 0:02:24]}  a4 {[%clk 0:02:22]} 15. Be1 {[%clk 0:01:47]}  e6 {[%clk 0:02:13]} 16. Nb5 {[%clk 0:01:39]}  Bxb2 {[%clk 0:02:02]} 17. Nxd6 {[%clk 0:01:14]}  Bxc1 {[%clk 0:01:57]} 18. Qxc5 {[%clk 0:01:14]}  Bb2 {[%clk 0:01:10]} 19. Nxf7 {[%clk 0:00:41]}  Qe7 {[%clk 0:01:04]} 20. Nh6+ {[%clk 0:00:37]}  Kh8 {[%clk 0:00:52]} 21. Qxe7 {[%clk 0:00:31]}  Nxe7 {[%clk 0:00:52]} 22. Rd7 {[%clk 0:00:32]}  Rae8 {[%clk 0:00:17]} 23. Bb4 {[%clk 0:00:28]}  Nc6 {[%clk 0:00:06]} 24. Bxf8 {[%clk 0:00:28]}  Rxf8 {[%clk 0:00:07]} 25. Rxb7 {[%clk 0:00:26]}  a3 {[%clk 0:00:04]} 26. Nf7+ {[%clk 0:00:18]}  Kg8 {[%clk 0:00:03]} 27. e5 {[%clk 0:00:15]}  Nxe5 {[%clk 0:00:03]} 28. Nxe5 {[%clk 0:00:12]}  Bxe5 {[%clk 0:00:03]} 29. Ra7 {[%clk 0:00:09]}  Rb8 {[%clk 0:00:03]} 30. g3 {[%clk 0:00:07]}  Bd6 {[%clk 0:00:02]} 31. Ra6 {[%clk 0:00:07]}  Bc5 {[%clk 0:00:03]} 32. Ra5 {[%clk 0:00:06]}  Bd4 {[%clk 0:00:02]} 33. Rxa3 {[%clk 0:00:05]}  Rb2 {[%clk 0:00:02]} 34. Rd3 {[%clk 0:00:04]}  Bxf2+ {[%clk 0:00:02]} 35. Kg2 {[%clk 0:00:02]}  e5 {[%clk 0:00:03]} 36. Be4 {[%clk 0:00:02]}  Kg7 {[%clk 0:00:03]} 37. Kf3 {[%clk 0:00:02]}  Bd4 {[%clk 0:00:04]} 38. Rb3 {[%clk 0:00:02]}  Rxa2 {[%clk 0:00:04]} 39. Rb7+ {[%clk 0:00:02]}  Kf6 {[%clk 0:00:05]} 40. Bd5 {[%clk 0:00:02]}  h5 {[%clk 0:00:05]} 41. g4 {[%clk 0:00:02]}  h4 {[%clk 0:00:04]} 42. Rf7+ {[%clk 0:00:01]}  Kg5 {[%clk 0:00:04]} 43. Ke4 {[%clk 0:00:02]}  Ra3 {[%clk 0:00:05]} 44. c5 {[%clk 0:00:01]}  Re3# {[%clk 0:00:05]} 0-1


[Site "https://www.chess.com"]

[Event "Titled Tuesday Blitz May 4 2021"]
[White "Janaszak, Dawid"]
[Black "Banawa, Joel"]
[WhiteFideId "1119206"]
[BlackFideId "2024055"]
[WhiteElo "2484"]
[BlackElo "2689"]
[Result "0-1"]
[Round "04"]
[TimeControl "180+1"]
[Date "2021.05.04"]
[WhiteClock "0:00:02"]
[BlackClock "0:00:01"]

1. d4 {[%clk 0:03:00]}  Nf6 {[%clk 0:02:58]} 2. Nf3 {[%clk 0:03:00]}  g6 {[%clk 0:02:59]} 3. Bf4 {[%clk 0:02:56]}  Bg7 {[%clk 0:03:00]} 4. Nc3 {[%clk 0:02:52]}  d6 {[%clk 0:02:58]} 5. e4 {[%clk 0:02:51]}  Nbd7 {[%clk 0:02:59]} 6. Qd2 {[%clk 0:02:50]}  c5 {[%clk 0:02:59]} 7. d5 {[%clk 0:02:45]}  Qb6 {[%clk 0:02:56]} 8. O-O-O {[%clk 0:02:44]}  Nxe4 {[%clk 0:02:56]} 9. Qe3 {[%clk 0:02:38]}  Nxc3 {[%clk 0:02:53]} 10. bxc3 {[%clk 0:02:39]}  Nf6 {[%clk 0:02:44]} 11. h3 {[%clk 0:02:27]}  Bf5 {[%clk 0:02:20]} 12. Bh6 {[%clk 0:02:09]}  Bxh6 {[%clk 0:02:14]} 13. Qxh6 {[%clk 0:02:10]}  Ne4 {[%clk 0:02:04]} 14. Qe3 {[%clk 0:02:03]}  Qa5 {[%clk 0:01:30]} 15. Kb2 {[%clk 0:01:41]}  b5 {[%clk 0:00:41]} 16. g4 {[%clk 0:01:36]}  b4 {[%clk 0:00:42]} 17. gxf5 {[%clk 0:00:56]}  Nxc3 {[%clk 0:00:31]} 18. Bc4 {[%clk 0:00:52]}  Qa3+ {[%clk 0:00:24]} 19. Ka1 {[%clk 0:00:51]}  Nxd1 {[%clk 0:00:25]} 20. Qxa3 {[%clk 0:00:47]}  bxa3 {[%clk 0:00:26]} 21. Rxd1 {[%clk 0:00:45]}  gxf5 {[%clk 0:00:26]} 22. Nh4 {[%clk 0:00:45]}  f4 {[%clk 0:00:21]} 23. Rg1 {[%clk 0:00:41]}  Kf8 {[%clk 0:00:18]} 24. Nf5 {[%clk 0:00:37]}  Rb8 {[%clk 0:00:17]} 25. Bb3 {[%clk 0:00:35]}  Rb4 {[%clk 0:00:14]} 26. c4 {[%clk 0:00:35]}  a5 {[%clk 0:00:11]} 27. Rc1 {[%clk 0:00:31]}  a4 {[%clk 0:00:10]} 28. Bd1 {[%clk 0:00:28]}  Rg8 {[%clk 0:00:11]} 29. Bg4 {[%clk 0:00:25]}  h5 {[%clk 0:00:09]} 30. Bxh5 {[%clk 0:00:25]}  Rxc4 {[%clk 0:00:10]} 31. Rb1 {[%clk 0:00:19]}  Rb4 {[%clk 0:00:09]} 32. Rc1 {[%clk 0:00:19]}  Rg2 {[%clk 0:00:08]} 33. Nh6 {[%clk 0:00:05]}  Rxf2 {[%clk 0:00:06]} 34. Rg1 {[%clk 0:00:06]}  e6 {[%clk 0:00:06]} 35. Bxf7 {[%clk 0:00:04]}  Rbb2 {[%clk 0:00:05]} 36. Rg8+ {[%clk 0:00:01]}  Ke7 {[%clk 0:00:05]} 37. Re8+ {[%clk 0:00:02]}  Kf6 {[%clk 0:00:02]} 38. Rxe6+ {[%clk 0:00:02]}  Kg7 {[%clk 0:00:02]} 39. Rg6+ {[%clk 0:00:02]}  Kh7 {[%clk 0:00:01]} 0-1


[Site "https://www.chess.com"]

[Event "Titled Tuesday Blitz May 4 2021"]
[White "Juhasz, Agoston"]
[Black "Porter, Ryan W"]
[WhiteFideId "778346"]
[BlackFideId "2011239"]
[WhiteElo "2211"]
[BlackElo "2390"]
[Result "0-1"]
[Round "04"]
[TimeControl "180+1"]
[Date "2021.05.04"]
[WhiteClock "0:00:35"]
[BlackClock "0:01:01"]

1. e4 {[%clk 0:02:53]}  d6 {[%clk 0:03:00]} 2. d4 {[%clk 0:02:53]}  Nf6 {[%clk 0:03:01]} 3. Nc3 {[%clk 0:02:53]}  g6 {[%clk 0:03:01]} 4. g3 {[%clk 0:02:50]}  Bg7 {[%clk 0:03:01]} 5. Bg2 {[%clk 0:02:50]}  O-O {[%clk 0:03:02]} 6. Nge2 {[%clk 0:02:50]}  e5 {[%clk 0:03:02]} 7. O-O {[%clk 0:02:49]}  exd4 {[%clk 0:03:03]} 8. Nxd4 {[%clk 0:02:50]}  Re8 {[%clk 0:03:03]} 9. h3 {[%clk 0:02:44]}  Bd7 {[%clk 0:03:03]} 10. Re1 {[%clk 0:02:43]}  Nc6 {[%clk 0:03:04]} 11. Be3 {[%clk 0:02:39]}  Nxd4 {[%clk 0:03:00]} 12. Bxd4 {[%clk 0:02:40]}  c5 {[%clk 0:03:00]} 13. Be3 {[%clk 0:02:34]}  Bc6 {[%clk 0:03:00]} 14. Bg5 {[%clk 0:02:15]}  h6 {[%clk 0:02:51]} 15. Bf4 {[%clk 0:02:09]}  Re6 {[%clk 0:02:45]} 16. Nd5 {[%clk 0:01:57]}  Nxd5 {[%clk 0:02:16]} 17. exd5 {[%clk 0:01:57]}  Rxe1+ {[%clk 0:02:16]} 18. Qxe1 {[%clk 0:01:57]}  Bb5 {[%clk 0:02:16]} 19. Qd2 {[%clk 0:01:39]}  g5 {[%clk 0:02:14]} 20. Be3 {[%clk 0:01:37]}  b6 {[%clk 0:01:53]} 21. Re1 {[%clk 0:01:33]}  Bd7 {[%clk 0:01:46]} 22. c3 {[%clk 0:01:26]}  Qf6 {[%clk 0:01:44]} 23. Kh2 {[%clk 0:01:24]}  Re8 {[%clk 0:01:43]} 24. Qd1 {[%clk 0:01:19]}  Qf5 {[%clk 0:01:27]} 25. Qf3 {[%clk 0:01:09]}  Be5 {[%clk 0:01:14]} 26. Qxf5 {[%clk 0:00:53]}  Bxf5 {[%clk 0:01:15]} 27. Bd2 {[%clk 0:00:51]}  Kf8 {[%clk 0:01:09]} 28. Be4 {[%clk 0:00:43]}  Bxe4 {[%clk 0:01:08]} 29. f4 {[%clk 0:00:35]}  Bf6 {[%clk 0:01:01]} 0-1


[Site "https://www.chess.com"]